bitfinex-derivatives/quotes_SOLF0:USTF0_20240818
["timestamp","ask_amount","ask_price","bid_price","bid_amount"]
[1723958685091,2.4712,141.61,141.59,0.05349718]
[1723958686682,2.4714,141.6,141.59,0.05349718]
[1723958690289,7.6,141.61,141.59,0.05349718]
[1723958690290,2.4713,141.61,141.59,0.05349718]
[1723958690590,0.04578652,141.62,141.59,0.05349718]
[1723958690790,2.51688652,141.62,141.59,0.05349718]
[1723958697397,2.51688652,141.62,141.59,2.52499718]
[1723958697596,2.51688652,141.62,141.59,10.12499718]
[1723958697798,0.04578652,141.62,141.59,10.12499718]
[1723958698097,0.04578652,141.62,141.6,2.4713]
[1723958700203,0.04578652,141.62,141.6,10.0713]
[1723958700593,0.04578652,141.62,141.6,7.6]
[1723958700798,0.04578652,141.62,141.61,10.0712]
[1723958702397,0.04578652,141.62,141.6,2.4713]
[1723958702601,4.26,141.68,141.61,7.6]
[1723958702804,4.26,141.68,141.63,7.6]
[1723958703106,2.4703,141.67,141.63,10.0707]
[1723958703408,11.86,141.68,141.6,2.5657]
[1723958703612,11.86,141.68,141.61,15.96966169]
[1723958703908,0.05388058,141.65,141.63,0.04584518]
[1723958706800,2.52438058,141.65,141.63,0.04584518]
[1723958707204,7.65388058,141.65,141.63,0.04584518]
[1723958707511,7.6,141.65,141.58,11.86]
[1723958707711,7.6,141.65,141.59,8.37209374]
[1723958708015,2.4707,141.64,141.57,17.10754176]
[1723958708208,2.4707,141.64,141.58,15.97243436]
[1723958708407,2.4707,141.64,141.6,2.4713]
[1723958708408,0.047257,141.62,141.6,2.4713]
[1723958708605,0.047257,141.62,141.59,8.42395815]
[1723958708606,0.047257,141.62,141.59,0.05152379]
[1723958709406,0.047257,141.62,141.59,2.52302379]
[1723958709708,7.647257,141.62,141.59,0.05152379]
[1723958710808,7.6,141.6,141.59,0.05152379]
[1723958711007,7.6,141.6,141.53,8.8979]
[1723958711208,3.44601546,141.61,141.54,8.3800324]
[1723958711209,7.6,141.58,141.54,8.3800324]
[1723958711515,7.6,141.58,141.53,21.76140255]
[1723958711702,7.6,141.58,141.54,8.38006552]
[1723958711903,7.6,141.58,141.55,2.4722]
[1723958712108,0.04626843,141.57,141.55,2.52628873]
[1723958712811,0.04626843,141.57,141.56,2.4721]
[1723958717814,0.04626843,141.57,141.55,0.05408873]
[1723958718511,7.64626843,141.57,141.55,0.05408873]
[1723958720818,10.11816843,141.57,141.55,0.05408873]
[1723958721513,0.04626843,141.57,141.55,0.05408873]
[1723958722421,7.6,141.56,141.51,4.26]
[1723958722609,7.6,141.56,141.46,7.6]
[1723958722610,4.26,141.56,141.46,7.6]
[1723958722810,7.6,141.53,141.49,2.4732]
[1723958723619,0.05091853,141.52,141.5,0.05024083]
[1723958724220,0.05091853,141.52,141.5,2.52334083]
[1723958724427,0.05091853,141.52,141.5,0.05024083]
[1723958725822,0.05091853,141.52,141.5,2.52334083]
[1723958726024,0.05091853,141.52,141.5,0.05024083]
[1723958728522,0.05091853,141.52,141.51,7.6]
[1723958728719,4.26,141.56,141.51,7.6]
[1723958729028,6.7322,141.56,141.52,2.4727]
[1723958729519,4.26,141.56,141.52,2.4727]
[1723958729727,4.26,141.56,141.53,0.05292786]
[1723958729929,0.04990968,141.55,141.53,0.05292786]
[1723958730815,0.04990968,141.55,141.53,2.52542786]
[1723958731224,0.04990968,141.55,141.54,2.4724]
[1723958731525,2.4717,141.58,141.54,19.0]
[1723958731526,4.26,141.58,141.54,19.0]
[1723958731724,1.2828,141.6,141.54,19.0]
[1723958732029,4.26,141.61,141.54,19.0]
[1723958732424,0.05234044,141.59,141.56,0.05392972]
[1723958732827,0.05234044,141.59,141.56,2.52592972]
[1723958733330,0.05234044,141.59,141.56,0.05392972]
[1723958733523,19.0,141.57,141.5,2.7]
[1723958733725,23.26,141.57,141.5,2.7]
[1723958734923,2.52624915,141.55,141.52,0.04772895]
[1723958736325,2.4724,141.54,141.52,0.04772895]
[1723958738629,2.4726,141.53,141.52,0.04772895]
[1723958739222,2.4725,141.54,141.52,0.04772895]
[1723958739424,0.05394915,141.55,141.52,0.04772895]
[1723958741321,3.51746147,141.54,141.52,0.04772895]
[1723958741522,19.05394915,141.55,141.52,0.04772895]
[1723958741725,2.4726,141.54,141.52,0.04772895]
[1723958745730,5.956843,141.54,141.52,0.04772895]
[1723958746730,19.0,141.53,141.45,2.6627]
[1723958746932,19.0,141.49,141.42,4.32]
[1723958747335,21.4734,141.49,141.44,2.474]
[1723958747931,2.52365243,141.48,141.45,0.05065942]
[1723958748436,0.05015243,141.48,141.45,0.05065942]
[1723958749638,0.05015243,141.48,141.45,2.52455942]
[1723958749938,0.05015243,141.48,141.45,0.05065942]
[1723958750240,4.32,141.54,141.46,19.0]
[1723958750538,4.32,141.54,141.46,20.2716]
[1723958750736,6.7925,141.54,141.49,2.4731]
[1723958751140,4.32,141.54,141.49,2.4731]
[1723958751334,2.4726,141.53,141.49,2.4731]
[1723958751544,2.52021658,141.53,141.5,0.05011565]
[1723958752129,0.04761658,141.53,141.5,2.52321565]
[1723958752334,0.04761658,141.53,141.5,0.05011565]
[1723958753743,0.04761658,141.53,141.5,2.52321565]
[1723958754142,0.04761658,141.53,141.5,0.05011565]
[1723958754344,19.04761658,141.53,141.5,0.05011565]
[1723958755043,21.52031658,141.53,141.5,0.05011565]
[1723958755244,19.04761658,141.53,141.5,0.05011565]
[1723958755542,21.52031658,141.53,141.5,0.05011565]
[1723958757541,2.4728,141.52,141.5,0.05011565]
[1723958761646,21.4728,141.52,141.5,0.05011565]
[1723958762945,2.4729,141.51,141.5,0.05011565]
[1723958763150,19.0,141.49,141.42,1.3924]
[1723958763451,23.32,141.49,141.42,1.3924]
[1723958763949,7.6,141.48,141.42,8.9924]
[1723958764148,0.05191395,141.47,141.45,2.4739]
[1723958767159,2.52561395,141.47,141.44,0.04633252]
[1723958767361,0.05191395,141.47,141.44,0.04633252]
[1723958767749,0.05191395,141.47,141.45,2.474]
[1723958771764,0.05191395,141.47,141.46,2.4738]
[1723958774262,0.05191395,141.47,141.45,2.4739]
[1723958774964,0.05191395,141.47,141.45,2.474]
[1723958777367,0.05191395,141.47,141.46,2.4738]
[1723958780575,6.8128,141.52,141.48,2.4734]
[1723958781581,0.04648764,141.51,141.49,0.04952612]
[1723958785873,7.64648764,141.51,141.49,0.04952612]
[1723958790180,0.04648764,141.51,141.49,0.04952612]
[1723958790489,7.6,141.55,141.49,0.04952612]
[1723958790885,5.6289,141.57,141.49,7.64952612]
[1723958791085,4.34,141.58,141.5,7.6]
[1723958791286,7.6,141.57,141.52,7.6]
[1723958791484,0.05187466,141.55,141.53,0.04745552]
[1723958791786,0.05187466,141.55,141.53,2.51995552]
[1723958792088,0.05187466,141.55,141.53,0.04745552]
[1723958795090,7.6,141.54,141.53,0.04745552]
[1723958796791,11.10918968,141.54,141.47,1.3208]
[1723958797092,7.6,141.51,141.47,1.3208]
[1723958797489,7.6,141.51,141.49,2.4732]
[1723958797992,7.65129893,141.51,141.49,0.04769759]
[1723958803993,7.65129893,141.51,141.49,2.52099759]
[1723958806096,0.05129893,141.51,141.49,2.52099759]
[1723958806300,0.05129893,141.51,141.5,2.4731]
[1723958806998,0.05129893,141.51,141.49,2.52089759]
[1723958808290,7.65129893,141.51,141.49,2.52089759]
[1723958808491,7.65129893,141.51,141.49,0.04769759]
[1723958809295,0.05129893,141.51,141.49,0.04769759]
[1723958809491,7.65129893,141.51,141.49,0.04769759]
[1723958814299,7.65129893,141.51,141.49,2.52099759]
[1723958815101,7.65129893,141.51,141.49,0.04769759]
[1723958815990,0.05129893,141.51,141.49,2.52099759]
[1723958820495,7.65129893,141.51,141.49,2.52099759]
[1723958820694,7.65129893,141.51,141.49,0.04769759]
[1723958820902,7.65129893,141.51,141.44,12.85638082]
[1723958821105,7.6,141.47,141.43,1.2927]
[1723958821302,7.6,141.47,141.44,2.4741]
[1723958821801,7.6,141.47,141.43,1.2927]
[1723958821998,0.05367179,141.47,141.45,2.4739]
[1723958823999,0.05367179,141.47,141.46,2.4738]
[1723958830305,0.05367179,141.47,141.45,10.85077215]
[1723958830501,7.65367179,141.47,141.45,2.4739]
[1723958835807,10.12737179,141.47,141.44,2.52418563]
[1723958836013,7.6,141.46,141.44,2.52418563]
[1723958836417,7.6,141.45,141.44,0.05008563]
[1723958838520,7.6,141.45,141.39,8.38342915]
[1723958838727,7.6,141.43,141.38,12.86765646]
[1723958839020,7.6,141.43,141.39,8.38504272]
[1723958839219,7.6,141.43,141.37,17.14765646]
[1723958839421,7.6,141.43,141.38,8.38533482]
[1723958839617,7.6,141.43,141.4,2.4748]
[1723958839618,0.04823219,141.41,141.4,2.4748]
[1723958839924,0.04823219,141.41,141.39,0.05428506]
[1723958840222,2.4751,141.39,141.35,2.4756]
[1723958840419,7.6,141.37,141.35,2.4756]
[1723958840619,7.6,141.37,141.32,12.86765646]
[1723958840816,7.6,141.37,141.3,20.46765646]
[1723958841015,7.6,141.37,141.31,8.39674542]
[1723958841232,7.6,141.37,141.3,7.6]
[1723958841521,0.05410185,141.35,141.33,7.65371038]
[1723958841723,0.05410185,141.35,141.34,2.4759]
[1723958842728,0.05410185,141.35,141.34,10.0759]
[1723958843428,14.3547,141.41,141.37,2.4754]
[1723958844527,0.05057964,141.4,141.38,0.05405581]
[1723958845024,7.6,141.39,141.38,0.05405581]
[1723958845924,7.6,141.39,141.3,8.9785]
[1723958846132,7.6,141.36,141.3,8.9785]
[1723958846429,7.6,141.34,141.3,1.3785]
[1723958846734,7.6,141.34,141.29,4.28]
[1723958847029,0.052336,141.33,141.31,2.52279905]
[1723958847926,0.052336,141.33,141.31,0.04649905]
[1723958848232,7.6,141.32,141.31,0.04649905]
[1723958851734,7.652336,141.33,141.31,0.04649905]
[1723958854132,0.052336,141.33,141.31,0.04649905]
[1723958854832,0.052336,141.33,141.32,2.4763]
[1723958857330,7.652336,141.33,141.31,2.52279905]
[1723958859437,7.652336,141.33,141.31,0.04649905]
[1723958860530,7.6,141.32,141.31,0.04649905]
[1723958861134,7.6,141.32,141.31,2.52289905]
[1723958861331,7.652336,141.33,141.31,2.52289905]
[1723958862232,0.052336,141.33,141.31,2.52289905]
[1723958864038,0.052336,141.33,141.32,2.4763]
[1723958864240,0.052336,141.33,141.31,0.04649905]
[1723958865036,0.052336,141.33,141.31,2.52279905]
[1723958866538,0.052336,141.33,141.32,2.4763]
[1723958876041,0.052336,141.33,141.32,3.8144]
[1723958876634,26.1575,141.47,141.32,3.8144]
[1723958876635,7.6,141.4,141.33,3.61463432]
[1723958876841,7.6,141.4,141.34,8.8735]
[1723958877034,7.6,141.37,141.35,2.4757]
[1723958877741,7.64485994,141.37,141.35,2.52125987]
[1723958878540,7.6,141.36,141.35,0.04555987]
[1723958884138,7.64485994,141.37,141.35,2.52125987]
[1723958885445,7.64485994,141.37,141.35,0.04555987]
[1723958885647,7.6,141.36,141.35,0.04555987]
[1723958886149,10.0756,141.36,141.35,0.04555987]
[1723958886543,7.6,141.36,141.29,4.34]
[1723958886740,7.6,141.32,141.29,4.34]
[1723958887447,7.6,141.32,141.3,2.4766]
[1723958887647,7.64653559,141.32,141.3,2.4766]
[1723958890049,7.64653559,141.32,141.31,2.4764]
[1723958890553,0.04653559,141.32,141.31,2.4764]
[1723958894857,7.64653559,141.32,141.29,0.04512247]
[1723958895054,7.6,141.31,141.29,0.04512247]
[1723958895453,7.6,141.31,141.29,2.52192247]
[1723958897861,7.6,141.31,141.29,0.04512247]
[1723958899251,0.04653559,141.32,141.29,0.04512247]
[1723958899559,7.64653559,141.32,141.29,0.04512247]
[1723958899855,7.64653559,141.32,141.29,2.52182247]
[1723958900259,7.6,141.31,141.29,2.52182247]
[1723958901963,0.04653559,141.32,141.29,2.52182247]
[1723958902165,7.64653559,141.32,141.29,2.52182247]
[1723958902364,0.04653559,141.32,141.29,0.04512247]
[1723958902866,0.04653559,141.32,141.3,2.4765]
[1723958903561,0.04653559,141.32,141.29,0.04512247]
[1723958903562,0.04653559,141.32,141.31,2.4764]
[1723958906763,0.04653559,141.32,141.31,8.40785722]
[1723958906957,7.64653559,141.32,141.31,8.40785722]
[1723958907161,7.64653559,141.32,141.29,12.94922738]
[1723958907162,7.64653559,141.32,141.29,0.04512247]
[1723958907662,7.64653559,141.32,141.3,2.4766]
[1723958907862,7.64653559,141.32,141.29,0.04512247]
[1723958908260,7.64653559,141.32,141.29,2.52182247]
[1723958910668,7.64653559,141.32,141.3,10.88835428]
[1723958910870,0.04653559,141.32,141.3,2.4766]
[1723958911765,0.04653559,141.32,141.29,0.04512247]
[1723958911969,0.04653559,141.32,141.3,8.41051605]
[1723958912170,0.04653559,141.32,141.29,0.04512247]
[1723958912466,0.04653559,141.32,141.3,10.8873832]
[1723958912662,0.04653559,141.32,141.3,2.4765]
[1723958913470,7.64653559,141.32,141.3,2.4765]
[1723958913681,7.6,141.31,141.29,0.04512247]
[1723958916666,10.0765,141.31,141.29,0.04512247]
[1723958917170,7.6,141.31,141.24,4.3]
[1723958917365,7.6,141.26,141.25,21.34248881]
[1723958917572,7.6,141.28,141.25,21.34248881]
[1723958917871,7.6,141.28,141.26,8.42074407]
[1723958918079,7.6,141.28,141.24,12.92734112]
[1723958918281,0.05140609,141.27,141.25,8.47312785]
[1723958918571,0.05140609,141.27,141.25,0.05142298]
[1723958918777,0.05140609,141.27,141.25,2.52892298]
[1723958921673,7.6,141.26,141.25,0.05142298]
[1723958924773,7.6,141.26,141.1,28.3]
[1723958924973,7.6,141.25,141.18,7.6]
[1723958925173,7.6,141.25,141.19,21.35602452]
[1723958925378,7.6,141.25,141.2,21.35602452]
[1723958925579,7.6,141.25,141.23,2.4777]
[1723958925973,7.64508369,141.25,141.23,2.5260548]
[1723958931881,0.04508369,141.25,141.24,2.4777]
[1723958932885,0.04508369,141.25,141.23,2.5261548]
[1723958933078,7.64508369,141.25,141.23,2.5261548]
[1723958936784,7.64508369,141.25,141.24,2.4777]
[1723958936987,0.04508369,141.25,141.24,2.4777]
[1723958943600,0.04508369,141.25,141.23,2.5261548]
[1723958944096,7.6,141.24,141.19,2.4785]
[1723958944398,7.6,141.21,141.14,3.53243315]
[1723958944592,7.6,141.19,141.14,11.96690492]
[1723958945202,7.6,141.19,141.15,0.04729652]
[1723958945400,0.04514471,141.18,141.15,0.04729652]
[1723958946501,0.04514471,141.18,141.17,2.4789]
[1723958948503,7.64514471,141.18,141.15,0.04729652]
[1723958948707,0.04514471,141.18,141.15,0.04729652]
[1723958948907,7.6,141.16,141.15,0.04729652]
[1723958950201,0.04514471,141.18,141.15,0.04729652]
[1723958950806,7.64514471,141.18,141.15,0.04729652]
[1723958951398,7.6,141.16,141.15,0.04729652]
[1723958953006,7.6,141.16,141.15,2.52649652]
[1723958953805,7.6,141.16,141.15,0.04729652]
[1723958955306,7.6,141.16,141.15,2.52649652]
[1723958959314,7.39841791,141.32,141.15,4.36729652]
[1723958959520,7.6,141.25,141.18,7.6]
[1723958959818,7.6,141.22,141.2,2.4783]
[1723958960210,7.6,141.22,141.15,11.92]
[1723958960406,7.6,141.22,141.2,2.4783]
[1723958960916,7.65079361,141.22,141.2,2.4783]
[1723958961216,0.05079361,141.22,141.21,2.4782]
[1723958961411,0.05079361,141.22,141.15,4.32]
[1723958961606,7.65079361,141.22,141.16,7.6]
[1723958961810,7.65079361,141.22,141.17,0.05100864]
[1723958962912,7.65079361,141.22,141.2,2.4783]
[1723958963215,0.05079361,141.22,141.2,2.4783]
[1723958963406,0.05079361,141.22,141.17,0.05100864]
[1723958963407,0.05079361,141.22,141.21,2.4782]
[1723958964413,0.05079361,141.22,141.2,0.04660679]
[1723958964620,0.05079361,141.22,141.2,2.52490679]
[1723958965610,0.05079361,141.22,141.21,2.4782]
[1723958967322,0.05079361,141.22,141.2,2.52490679]
[1723958967819,0.05079361,141.22,141.21,2.4782]
[1723958975928,7.6,141.26,141.23,2.4777]
[1723958976117,4.32,141.27,141.2,7.6]
[1723958976320,7.6,141.27,141.2,7.6]
[1723958976921,0.05288448,141.25,141.24,2.4775]
[1723958977225,0.05288448,141.25,141.22,0.0496653]
[1723958977427,0.05288448,141.25,141.23,2.4777]
[1723958979327,7.6,141.24,141.22,2.5276653]
[1723958979829,7.6,141.24,141.23,2.4778]
[1723958981728,7.6,141.24,141.22,0.0496653]
[1723958981925,0.05288448,141.25,141.22,0.0496653]
[1723958981926,7.6,141.23,141.22,0.0496653]
[1723958986728,0.05288448,141.25,141.22,0.0496653]
[1723958986934,7.6,141.24,141.22,0.0496653]
[1723958987725,7.6,141.24,141.22,2.5276653]
[1723958993733,7.6,141.23,141.22,0.0496653]
[1723959002252,7.6,141.23,141.17,14.2848637]
[1723959002253,7.6,141.23,141.16,5.7524]
[1723959002441,7.6,141.21,141.17,8.42259701]
[1723959002642,7.6,141.21,141.18,2.4786]
[1723959003248,7.65064965,141.21,141.18,2.52628705]
[1723959003747,0.05064965,141.21,141.18,0.04768705]
[1723959003946,0.05064965,141.21,141.18,7.64768705]
[1723959004150,7.6,141.24,141.18,7.64768705]
[1723959004454,7.6,141.24,141.21,2.4781]
[1723959005351,7.64593991,141.24,141.21,2.52625537]
[1723959009455,7.64593991,141.24,141.22,2.478]
[1723959013467,7.6,141.23,141.22,2.478]
[1723959020775,7.6,141.23,141.21,2.52625537]
[1723959021866,7.6,141.23,141.21,0.04815537]
[1723959023071,7.6,141.22,141.18,12.92998721]
[1723959023369,38.0,141.19,141.1,2.5656]
[1723959023570,7.6,141.13,141.1,2.5656]
[1723959023770,7.6,141.13,141.11,2.4799]
[1723959024073,7.6,141.13,141.11,2.52893117]
[1723959024272,7.65015585,141.13,141.11,2.52893117]
[1723959024772,7.65015585,141.13,141.11,0.04903117]
[1723959024972,7.6,141.12,141.11,0.04903117]
[1723959029768,7.6,141.12,141.08,2.4804]
[1723959029971,7.6,141.1,141.04,2.6833]
[1723959030177,7.6,141.1,141.04,6.23007455]
[1723959030477,7.6,141.1,141.07,2.4805]
[1723959030680,7.64641379,141.1,141.07,2.53058916]
[1723959031869,7.64641379,141.1,141.08,2.4805]
[1723959032270,0.04641379,141.1,141.08,2.4805]
[1723959032469,0.04641379,141.1,141.09,2.4803]
[1723959032672,7.6,141.14,141.07,12.05008916]
[1723959032879,7.6,141.15,141.09,7.6]
[1723959033177,7.6,141.15,141.11,2.4799]
[1723959033373,3.8148,141.16,141.09,7.6]
[1723959033571,7.6,141.15,141.09,7.6]
[1723959033771,0.04988452,141.13,141.11,0.04801321]
[1723959034079,0.04988452,141.13,141.11,2.52781321]
[1723959034675,0.04988452,141.13,141.12,2.4798]
[1723959035577,7.6,141.16,141.13,2.4795]
[1723959036477,6.8788,141.18,141.14,2.4794]
[1723959036780,7.65189591,141.16,141.14,2.4794]
[1723959042087,7.65189591,141.16,141.15,2.4792]
[1723959043683,0.05189591,141.16,141.15,2.4792]
[1723959043878,7.6,141.19,141.17,2.4788]
[1723959044680,7.1222,141.21,141.13,1.318]
[1723959044681,7.6,141.18,141.13,1.318]
[1723959044883,7.6,141.16,141.13,1.318]
[1723959045083,7.64761915,141.16,141.13,1.318]
[1723959045285,7.64761915,141.16,141.13,1.37099648]
[1723959045784,7.64761915,141.16,141.15,2.4791]
[1723959047780,7.64761915,141.16,141.13,0.05299648]
[1723959047978,7.6,141.14,141.13,0.05299648]
[1723959052180,2.4794,141.15,141.13,0.05299648]
[1723959052376,7.6,141.14,141.13,0.05299648]
[1723959053586,7.6,141.15,141.13,2.53259648]
[1723959053785,7.6,141.15,141.13,0.05299648]
[1723959054677,7.6,141.15,141.14,2.4794]
[1723959055083,0.04761915,141.16,141.14,2.4794]
[1723959055290,0.04761915,141.16,141.15,2.4792]
[1723959055883,7.64761915,141.16,140.97,55.23983233]
[1723959056090,7.6,141.09,141.04,1.3785]
[1723959056291,7.6,141.09,141.05,5.6699]
[1723959057085,0.0472114,141.08,141.07,2.4806]
[1723959075197,0.0472114,141.08,141.06,2.53251816]
[1723959081897,7.6672114,141.08,141.06,2.53251816]
[1723959082101,7.62,141.07,141.06,2.53251816]
[1723959083307,7.62,141.07,141.06,0.05181816]
[1723959084105,7.62,141.07,141.04,2.4811]
[1723959084405,7.62,141.05,141.04,2.4811]
[1723959085502,7.66741271,141.06,141.04,2.4811]
[1723959086106,7.66741271,141.06,141.03,2.52751186]
[1723959089113,7.62,141.05,141.03,0.04621186]
[1723959090314,7.62,141.05,141.03,8.47265345]
[1723959090614,7.62,141.05,141.03,0.04621186]
[1723959091512,7.62,141.05,141.03,8.4723887]
[1723959091917,7.62,141.05,141.03,0.04621186]
[1723959092212,0.04741271,141.06,141.03,10.95375843]
[1723959092417,7.66741271,141.06,141.03,2.52751186]
[1723959093519,7.66741271,141.06,141.03,10.95325776]
[1723959093708,0.04741271,141.06,141.04,2.4812]
[1723959093914,0.04741271,141.06,141.04,10.90555462]
[1723959095319,0.04741271,141.06,141.05,2.481]
[1723959097121,0.04741271,141.06,141.05,10.90238001]
[1723959097823,0.04741271,141.06,141.05,2.481]
[1723959101937,7.66741271,141.06,141.04,10.90248001]
[1723959102327,7.66741271,141.06,141.04,2.4811]
[1723959102630,7.62,141.05,141.03,0.04621186]
[1723959103926,0.04741271,141.06,141.03,0.04621186]
[1723959104327,7.62,141.04,141.03,0.04621186]
[1723959105429,0.04741271,141.06,141.03,2.52761186]
[1723959105623,0.04741271,141.06,141.03,0.04621186]
[1723959106325,0.04741271,141.06,141.03,8.47615259]
[1723959106533,0.04741271,141.06,141.04,8.42994073]
[1723959106733,0.04741271,141.06,141.04,2.4811]
[1723959107234,0.04741271,141.06,141.04,10.90771655]
[1723959107431,0.04741271,141.06,141.05,2.481]
[1723959108629,0.04741271,141.06,141.05,10.90689293]
[1723959108832,0.04741271,141.06,141.05,2.481]
[1723959111437,0.04741271,141.06,141.05,10.90689293]
[1723959111740,0.04741271,141.06,141.05,2.481]
[1723959112036,0.04741271,141.06,141.05,10.90689293]
[1723959112335,0.04741271,141.06,141.05,2.481]
[1723959113038,0.04741271,141.06,141.05,10.90954383]
[1723959113337,0.04741271,141.06,141.05,2.481]
[1723959113636,0.04741271,141.06,141.05,10.90954383]
[1723959117136,0.04741271,141.06,141.05,2.481]
[1723959117338,0.04741271,141.06,141.05,10.90997278]
[1723959118538,0.04741271,141.06,141.05,2.481]
[1723959118740,0.04741271,141.06,141.05,10.90758223]
[1723959120140,5.4745,141.12,141.05,10.90758223]
[1723959120141,9.9043,141.34,141.08,2.4804]
[1723959120343,7.62,141.1,141.08,2.4804]
[1723959121141,7.67234141,141.1,141.08,2.52985077]
[1723959121935,7.67234141,141.1,141.09,2.4803]
[1723959124239,7.67234141,141.1,141.09,10.90655627]
[1723959124647,7.67234141,141.1,141.09,2.4803]
[1723959124851,7.67234141,141.1,141.09,10.90597182]
[1723959127141,7.67234141,141.1,141.09,8.42567182]
[1723959127542,7.67234141,141.1,141.08,0.04945077]
[1723959127746,7.62,141.09,141.08,0.04945077]
[1723959127948,7.62,141.09,141.08,8.47606957]
[1723959131445,7.62,141.09,141.08,0.04945077]
[1723959131651,7.62,141.09,141.08,8.48063998]
[1723959134049,7.62,141.09,141.02,1.3236]
[1723959134258,7.62,141.05,141.03,8.43631993]
[1723959134457,7.62,141.04,141.03,2.4813]
[1723959135860,7.67213395,141.05,141.03,2.4813]
[1723959136558,0.05213395,141.05,141.04,2.4812]
[1723959138450,7.67213395,141.05,141.04,2.4812]
[1723959139859,7.67213395,141.05,141.03,2.4813]
[1723959141557,7.67213395,141.05,141.04,2.4812]
[1723959141760,0.05213395,141.05,141.04,2.4812]
[1723959146463,7.67213395,141.05,141.04,2.4812]
[1723959148157,7.67213395,141.05,141.03,2.4813]
[1723959153869,7.67213395,141.05,141.02,2.52966702]
[1723959155173,7.67213395,141.05,141.03,2.4813]
[1723959168379,7.67213395,141.05,141.02,0.04816702]
[1723959168380,0.05213395,141.05,141.04,2.4812]
[1723959169069,7.67213395,141.05,141.04,2.4812]
[1723959169472,7.67213395,141.05,141.03,2.4813]
[1723959170075,7.62,141.04,141.02,2.52966702]
[1723959170474,7.62,141.04,141.02,0.04816702]
[1723959170776,7.62,141.03,140.97,4.32]
[1723959170980,4.32,141.04,140.88,63.38682096]
[1723959170981,7.62,140.98,140.93,7.0614]
[1723959171169,7.62,140.98,140.96,2.4825]
[1723959171680,7.66486014,140.98,140.96,2.52954981]
[1723959178388,0.04486014,140.98,140.97,2.4824]
[1723959178694,0.04486014,140.98,140.96,0.04704981]
[1723959179990,7.62,141.02,140.96,0.04704981]
[1723959180987,0.04799555,141.0,140.96,0.04704981]
[1723959181597,4.32,141.05,140.97,7.62]
[1723959181891,7.62,141.04,140.97,7.62]
[1723959182091,7.62,141.04,140.98,4.32]
[1723959182689,0.0482344,141.02,141.0,2.5267189]
[1723959193107,0.0482344,141.02,141.01,2.4817]
[1723959194206,7.62,141.06,141.02,2.4814]
[1723959195103,4.32,141.07,141.0,7.62]
[1723959195304,0.04467689,141.05,141.03,0.0495257]
[1723959196798,0.04467689,141.05,141.04,2.4811]
[1723959196999,4.3,141.11,141.03,7.6695257]
[1723959197203,7.62,141.1,141.04,7.62]
[1723959197405,7.62,141.1,141.04,8.891]
[1723959197599,7.62,141.1,141.07,2.4805]
[1723959198209,7.66723235,141.1,141.07,2.53194364]
[1723959198703,7.62,141.08,141.07,2.53194364]
[1723959202014,7.62,141.08,141.07,0.05144364]
[1723959202215,7.62,141.08,141.02,4.3]
[1723959202410,7.62,141.07,141.04,2.4811]
[1723959203208,7.62,141.07,141.03,2.4813]
[1723959203408,7.66573751,141.07,141.04,0.05132323]
[1723959203609,7.62,141.05,141.04,0.05132323]
[1723959203811,7.62,141.05,141.01,2.4817]
[1723959204011,7.62,141.04,141.01,2.4817]
[1723959204809,7.62,141.04,141.01,2.52883095]
[1723959205012,7.66534618,141.04,141.01,2.52883095]
[1723959205219,7.66534618,141.04,141.02,2.4815]
[1723959206109,7.66534618,141.04,141.01,2.52883095]
[1723959206311,7.66534618,141.04,141.01,0.04713095]
[1723959207011,7.66534618,141.04,141.01,2.52883095]
[1723959208909,0.04534618,141.04,141.01,2.52883095]
[1723959209613,0.04534618,141.04,141.01,0.04713095]
[1723959209915,0.04534618,141.04,141.02,2.4815]
[1723959211814,0.04534618,141.04,141.01,0.04713095]
[1723959213114,0.04534618,141.04,141.03,2.4814]
[1723959215719,7.66534618,141.04,141.02,2.4814]
[1723959217822,7.66534618,141.04,141.01,2.52873095]